{"text_format":"3","workbook":"xlsx","n_sheets":2,"sheets":["Začetek","Račun za storitev"],"not_rendered":{"images":1},"read":"whole","date_system":"1900"}

{"sheet":"Začetek","index":0,"n_rows":8,"n_cols":2,"rows_kept":8}
[null,"O TEJ PREDLOGI"]
[null,"Uporabite to predlogo, da ustvarite račun za storitev."]
[null,"Izpolnite številko računa, datum, ime podjetja, naslov, slogan in podrobnosti plačnika."]
[null,"Vnesite podatke v tabele."]
[null,"Skupni znesek se izračuna samodejno."]
[null,"Opomba: "]
[null,"Dodatna navodila so na voljo v stolpcu A na delovnem listu RAČUN ZA STORITEV. To besedilo je bilo namenoma skrito. Če želite besedilo premakniti, izberite stolpec A, nato izberite še IZBRIŠI. Če želite besedilo razkriti, izberite stolpec A, nato zamenjajte barvo pisave."]
[null,"Če želite izvedeti več o tabelah, znotraj tabele pritisnite SHIFT in nato F10, izberite možnost TABELA in nato izberite NADOMESTNO BESEDILO."]

{"sheet":"Račun za storitev","index":1,"n_rows":43,"n_cols":5,"rows_kept":43,"merged":[[0,1,0,2],[0,3,0,4],[1,1,1,4],[2,1,2,3],[3,1,3,3],[4,1,4,2],[5,1,5,2],[6,1,6,2],[7,1,7,2],[41,1,41,2],[41,3,41,4],[42,1,42,4]]}
["Ustvarite račun za storitev na tem delovnem listu. V celico na desni vnesite logotip podjetja, v celico D1 pa naslov tega delovnega lista. Uporabna navodila za uporabo tega delovnega lista najdete v celicah v tem stolpcu. Naslednje navodilo je v celici A3.","Označba mesta za logotip je v tej celici.",null,"RAČUN"]
[]
["V celico na desni vnesite ime podjetja.","Ime podjetja"]
["V celico na desni vnesite slogan podjetja.","Slogan podjetja"]
["V celico na desni vnesite naslov podjetja, v celico E5 pa številko računa.","Naslov",null,"ŠT. RAČUNA","Št."]
["V celico na desni vnesite mesto, državo in poštno številko, v celico E6 pa datum.","Mesto, država, poštna številka",null,"DATUM ",{"$f":"TODAY()","v":"2019-04-17"}]
["V celico na desni vnesite telefonsko številko in številko faksa, v celico E7 pa ID.","Telefon faks",null,"ID STRANKE ","ID"]
["Vnesite e-poštni naslov v celico na desni.","E-pošta"]
["Oznaka »za« je v celici na desni. V celice od C9 do C13 vnesite podrobnosti plačnika, kot so ime, ime podjetja, naslov in telefonska številka. Naslednje navodilo je v celici A14.","ZA","Ime"]
[null,null,"Ime podjetja"]
[null,null,"Naslov"]
[null,null,"Mesto, poštna številka"]
[null,null,"Telefon"]
["Vnesite informacije v tabelo »Podrobnosti o prodaji« z začetkom v celici na desni. Naslednje navodilo je v celici A17.","PRODAJALEC","DELOVNO MESTO","PLAČILNI POGOJI","ROK"]
[{"$nulls":3},"Plačilo po prejemu"]
[]
["Vnesite informacije v tabelo »Račun« z začetkom v celici na desni. Delna vsota in vsota se izračunata samodejno. Naslednje navodilo je v celici A42.","KOLIČINA","OPIS","CENA ENOTE","VSOTA VRSTICE"]
[{"$nulls":4},{"$f":"IF(SUM(B18)>0,SUM(B18*'Račun za storitev'!$D18),\"\")","v":""}]
[{"$nulls":4},{"$f":"IF(SUM(B19)>0,SUM(B19*'Račun za storitev'!$D19),\"\")","v":""}]
[{"$nulls":4},{"$f":"IF(SUM(B20)>0,SUM(B20*'Račun za storitev'!$D20),\"\")","v":""}]
[{"$nulls":4},{"$f":"IF(SUM(B21)>0,SUM(B21*'Račun za storitev'!$D21),\"\")","v":""}]
[{"$nulls":4},{"$f":"IF(SUM(B22)>0,SUM(B22*'Račun za storitev'!$D22),\"\")","v":""}]
[{"$nulls":4},{"$f":"IF(SUM(B23)>0,SUM(B23*'Račun za storitev'!$D23),\"\")","v":""}]
[{"$nulls":4},{"$f":"IF(SUM(B24)>0,SUM(B24*'Račun za storitev'!$D24),\"\")","v":""}]
[{"$nulls":4},{"$f":"IF(SUM(B25)>0,SUM(B25*'Račun za storitev'!$D25),\"\")","v":""}]
[{"$nulls":4},{"$f":"IF(SUM(B26)>0,SUM(B26*'Račun za storitev'!$D26),\"\")","v":""}]
[{"$nulls":4},{"$f":"IF(SUM(B27)>0,SUM(B27*'Račun za storitev'!$D27),\"\")","v":""}]
[{"$nulls":4},{"$f":"IF(SUM(B28)>0,SUM(B28*'Račun za storitev'!$D28),\"\")","v":""}]
[{"$nulls":4},{"$f":"IF(SUM(B29)>0,SUM(B29*'Račun za storitev'!$D29),\"\")","v":""}]
[{"$nulls":4},{"$f":"IF(SUM(B30)>0,SUM(B30*'Račun za storitev'!$D30),\"\")","v":""}]
[{"$nulls":4},{"$f":"IF(SUM(B31)>0,SUM(B31*'Račun za storitev'!$D31),\"\")","v":""}]
[{"$nulls":4},{"$f":"IF(SUM(B32)>0,SUM(B32*'Račun za storitev'!$D32),\"\")","v":""}]
[{"$nulls":4},{"$f":"IF(SUM(B33)>0,SUM(B33*'Račun za storitev'!$D33),\"\")","v":""}]
[{"$nulls":4},{"$f":"IF(SUM(B34)>0,SUM(B34*'Račun za storitev'!$D34),\"\")","v":""}]
[{"$nulls":4},{"$f":"IF(SUM(B35)>0,SUM(B35*'Račun za storitev'!$D35),\"\")","v":""}]
[{"$nulls":4},{"$f":"IF(SUM(B36)>0,SUM(B36*'Račun za storitev'!$D36),\"\")","v":""}]
[{"$nulls":4},{"$f":"IF(SUM(B37)>0,SUM(B37*'Račun za storitev'!$D37),\"\")","v":""}]
[{"$nulls":3},"DELNA VSOTA",{"$f":"IF(SUM(E18:E37)>0,SUM(E18:E37),\"\")","v":""}]
[{"$nulls":3},"PROMETNI DAVEK"]
[{"$nulls":3},"VSOTA",{"$f":"IF(SUM(E38)>0,SUM((E38*E39)+E38),\"\")","v":""}]
[]
["Ime podjetja se samodejno posodobi v celici D42.","Vsi čeki naj bodo izstavljeni na",null,{"$f":"B3","v":"Ime podjetja"}]
["Zahvala je v celici na desni.","ZAHVALJUJEMO SE VAM ZA SODELOVANJE!"]